[Event "SixDays Budapest January-IMB 2023"]
[Site "Budapest"]
[Date "2023.01.27"]
[Round "8.5"]
[White "La Barbera, Manfredi"]
[Black "Gatineau, Yovann"]
[Result "0-1"]
[ECO "B12"]
[WhiteElo "1961"]
[BlackElo "2354"]
[Annotator "TA"]
[PlyCount "50"]
[EventDate "2023.01.23"]
[EventType "tourn"]
[EventCountry "HUN"]
[SourceTitle "playchess.com"]
[Source "ChessBase"]
[SourceQuality "1"]
[TimeControl "5400+30"]

{[%evp 9,50,0,0,0,0,0,0,0,0,0,0,1,24,5,52,62,53,41,59,4,10,-4,16,5,11,-154,-115,-235,-224,-239,-241,-238,-149,-301,-261,-358,-335,-408,-394,-395,-400,-765,-672]} 1. e4 c6 {[%emt 0:01:38]} 2. d4 {[%emt 0:00:14]} d5 {[%emt 0:00:16]} 3. e5 {[%emt 0:00:11]} c5 {[%emt 0:00:06]} 4. dxc5 {[%emt 0:00:07]} e6 {[%emt 0:00:14]} 5. a3 {[%emt 0:00:07]} Bxc5 {[%emt 0:00:14]} 6. b4 {[%emt 0:04:27] B12: Caro-Kann: Advance Variation.} Be7 {[%emt 0:00:49]} 7. Bd3 {[%emt 0:01:35]} a5 {[%emt 0:01:54]} 8. b5 {[%emt 0:00:09] Prevents Nc6. The position is equal.} Nd7 {[%emt 0:00:45]} 9. Nf3 {[%emt 0:00:34]} f6 {[%emt 0:03:22]} 10. Bb2 {[%emt 0:03:24]} Nh6 {[%emt 0:02:01]} 11. Qe2 {[%emt 0:06:40] [#]} Nf7 $146 {[%emt 0:01:58]} (11... O-O $11 {deserves consideration.}) ({Predecessor:} 11... O-O 12. O-O Nf7 13. exf6 Bxf6 14. c4 Nc5 15. Nc3 b6 16. Rad1 Bb7 17. cxd5 exd5 {½-½ Warakomska,A (2293)-Giacomini,H (2178) Hoogeveen op 22nd 2018 (3)}) 12. exf6 $14 {[%emt 0:00:18]} gxf6 {[%emt 0:00:25]} 13. c4 $1 {[%emt 0:06:38]} (13. Qxe6 $2 {loses.} Nde5 14. Nxe5 Bxe6 $19) 13... Nc5 {[%emt 0:02:36]} 14. cxd5 {[%emt 0:07:50]} ({Better is} 14. Bc2 $1 $14) 14... Qxd5 $11 {[%emt 0:00:13]} 15. Bc4 {[%emt 0:00:54]} Qh5 {[%emt 0:01:08]} 16. Nc3 {[%emt 0:19:31]} Rg8 {[%emt 0:03:41][%cal Bh8g8,Bg8g2,Bg2g4,Bg4f4][%mdl 32]} 17. Rd1 $2 {[%emt 0:14:38]} (17. O-O $11) 17... Rxg2 $17 {[%emt 0:01:52]} 18. b6 {[%emt 0:00:09]} (18. h3 $17 {was called for.}) 18... Rg4 $19 {[%emt 0:14:52][%cal Og4c4] [#] White must now prevent ...Rxc4!} 19. Bb5+ {[%emt 0:02:42]} Kf8 {[%emt 0:00:30]} 20. Qe3 {[%emt 0:04:02]} e5 {[%emt 0:02:35] Hoping for ...Rf4.} 21. h3 $2 {[%emt 0:04:24] This costs White the game.} (21. Be2 $17 {was necessary.}) 21... Rf4 {[%emt 0:02:37]} 22. Be2 {[%emt 0:04:01]} Bg4 {[%emt 0:02:24]} ({But not} 22... Bxh3 23. Ng1 (23. Nd2 Qg6 $18) 23... Qg6 24. Qxh3 $18 (24. Nxh3 Rh4 $18)) 23. Nd2 {[%emt 0:06:56]} Bxe2 {[%emt 0:06:00]} 24. Nxe2 {[%emt 0:00:17]} Rd8 {[%emt 0:01:33]} 25. Kf1 {[%emt 0:03:49]} (25. Nxf4 $142 exf4 26. Qf3 Nd3+ 27. Kf1) 25... Rd3 {[%emt 0:02:34][%mdl 64] Trapped Piece.   Weighted Error Value: White=0.69/Black=0.11 (very precise)} 0-1

[Event "SixDays Budapest January-IMB 2023"]
[Site "Budapest"]
[Date "2023.01.28"]
[Round "9.1"]
[White "Gatineau, Yovann"]
[Black "Daroczi, Donat"]
[Result "1-0"]
[ECO "E04"]
[WhiteElo "2354"]
[BlackElo "2148"]
[Annotator "TA"]
[PlyCount "79"]
[EventDate "2023.01.23"]
[EventType "tourn"]
[EventCountry "HUN"]
[SourceTitle "playchess.com"]
[Source "ChessBase"]
[SourceQuality "1"]
[TimeControl "5400+30"]

{[%evp 10,79,24,24,23,24,16,-16,-4,-6,0,-22,-3,-31,12,13,15,6,95,100,87,93,84,88,119,106,102,108,277,267,313,306,363,314,360,359,345,316,307,306,310,313,293,252,249,257,248,211,237,239,223,210,236,240,260,260,254,248,347,343,341,334,368,368,361,243,395,391,1014,1017,897,872]} 1. d4 {[%emt 0:20:49]} Nf6 {[%emt 0:00:07]} 2. c4 {[%emt 0:00:19]} e6 {[%emt 0:00:06]} 3. Nf3 {[%emt 0:00:13]} d5 {[%emt 0:00:09][%cal Bd7d5,Bd5c4][%mdl 32]} 4. g3 {[%emt 0:00:04]} dxc4 {[%emt 0:00:08]} 5. Bg2 {[%emt 0:00:41]} Bb4+ {[%emt 0:00:06]} 6. Bd2 {[%emt 0:00:06]} c5 {[%emt 0:00:06] E04: Open Catalan: 5 Nf3.} 7. dxc5 {[%emt 0:01:44]} (7. a3 $5 {[%cal Ra3b4]} Bxd2+ 8. Nbxd2 $11) 7... Bxc5 {[%emt 0:00:16]} 8. Qa4+ {[%emt 0:00:47]} Nbd7 {[%emt 0:00:37] The position is equal.} 9. Qxc4 {[%emt 0:01:36] [#]} b5 $1 {[%emt 0:00:21]} 10. Qd3 {[%emt 0:04:27][%cal Of3e5] [#]} (10. Qxb5 Rb8) 10... Qb6 $146 {[%emt 0:09:47]} ({Predecessor:} 10... Bb7 11. b4 Be7 12. Qxb5 Rb8 13. Qa4 O-O 14. O-O Nb6 15. Qxa7 Nfd5 16. Nc3 Nxb4 {1-0 Gunina,V (2525)-Javakhishvili,L (2461) Khanty-Mansiysk FIDE GP (Women) 2016 (1)}) 11. O-O {[%emt 0:00:49]} Bb7 {[%emt 0:03:47]} (11... b4 $5 {[%cal Rc8a6]} 12. Be3 O-O $15) 12. b4 {[%emt 0:05:09]} Be7 {[%emt 0:09:01]} 13. Be3 {[%emt 0:03:02]} Be4 {[%emt 0:00:25] [#]} 14. Qxe4 $1 $16 {[%emt 0:10:59]} Nxe4 {[%emt 0:00:21]} 15. Bxb6 {[%emt 0:00:04]} Nxb6 {[%emt 0:15:04] [#]} 16. Nd4 $1 $36 {[%emt 0:00:55][%csl LRb5,LRe4][%mdl 2048] White is in control.} Rd8 {[%emt 0:06:17]} 17. Nc6 {[%emt 0:10:44][%cal Bd4c6,Bc6a7,Ba7b5][%mdl 32]} Nd2 {[%emt 0:03:20]} 18. Rc1 {[%emt 0:00:48]} Rd6 {[%emt 0:08:40] This move loses the game for Black.} (18... Rd7 $16) 19. Nxa7 $18 {[%emt 0:09:25]} Nxb1 {[%emt 0:07:57]} 20. Bc6+ {[%emt 0:04:54]} (20. Rcxb1 $6 O-O 21. Nxb5 Rd2 $18) 20... Nd7 {[%emt 0:03:52]} 21. Nxb5 {[%emt 0:05:37]} (21. Rcxb1 Bf6 $18) (21. Raxb1 O-O 22. Bxb5 Bg5 $18) 21... Rd2 {[%emt 0:04:25]} 22. Bxd7+ {[%emt 0:00:49]} (22. Rcxb1 O-O 23. a4 (23. Rd1 Rxd1+ 24. Rxd1 Ne5 $16) 23... Nb8 $18) 22... Rxd7 {[%emt 0:01:32]} 23. Rc8+ {[%emt 0:00:06]} (23. Rcxb1 Bf6 $11) 23... Rd8 {[%emt 0:01:12]} 24. Rxd8+ {[%emt 0:00:07]} Kxd8 {[%emt 0:00:04]} 25. Rxb1 {[%emt 0:00:07][%mdl 4096] Endgame KRB-KRN} Kd7 {[%emt 0:00:03]} 26. Rd1+ {[%emt 0:05:25]} Kc6 {[%emt 0:01:19]} 27. Nd4+ {[%emt 0:00:03]} Kb6 {[%emt 0:03:50]} 28. a3 {[%emt 0:00:04]} Ra8 {[%emt 0:04:07]} 29. Rd3 {[%emt 0:00:14]} Bf6 {[%emt 0:00:47]} 30. Nc2 {[%emt 0:02:17]} Rc8 {[%emt 0:03:11]} 31. Ne3 {[%emt 0:00:38]} Kb5 {[%emt 0:01:33]} 32. Rd7 {[%emt 0:02:25]} Ra8 {[%emt 0:01:24]} 33. Nc2 {[%emt 0:00:58]} ({Don't do} 33. Rxf7 $6 Rxa3 34. Rb7+ Kc6 $16) 33... Ka4 {[%emt 0:10:01]} 34. Rxf7 {[%emt 0:01:08]} Kb3 {[%emt 0:00:16]} 35. Rc7 {[%emt 0:01:09]} Bc3 {[%emt 0:00:05]} 36. Ne3 {[%emt 0:00:15]} Rxa3 {[%emt 0:00:14]} 37. Rc6 {[%emt 0:01:05] Dodges Ra6} Ra2 $2 {[%emt 0:03:50]} (37... Kxb4 38. Rxe6 Kc5) 38. b5 {[%emt 0:00:16][%cal Bb4b5,Bb5b6,Bb6b7][%mdl 32]} ({Less strong is} 38. Rxe6 Bxb4 39. Rb6 Ka4 $18) 38... Rxe2 $2 {[%emt 0:00:38]} (38... Kb4 39. b6 (39. Rxe6 Kxb5 40. Nd5 Bb2 $18) 39... Ra8 40. Rxe6 Kc5) 39. b6 {[%emt 0:00:08]} Bd4 {[%emt 0:00:28]} 40. b7 {[%emt 0:00:18] Weighted Error Value: White=0.08 (flawless) /Black=0.35} 1-0

[Event "SixDays Budapest January-IMB 2023"]
[Site "Budapest"]
[Date "2023.01.28"]
[Round "9.2"]
[White "Apol, Luitjen Akselsson"]
[Black "La Barbera, Manfredi"]
[Result "1-0"]
[ECO "C03"]
[WhiteElo "2215"]
[BlackElo "1961"]
[Annotator "TA"]
[PlyCount "105"]
[EventDate "2023.01.23"]
[EventType "tourn"]
[EventCountry "HUN"]
[SourceTitle "playchess.com"]
[Source "ChessBase"]
[SourceQuality "1"]
[TimeControl "5400+30"]

{[%evp 9,105,22,29,33,22,41,46,20,27,20,23,18,29,21,100,46,104,54,93,52,50,46,45,23,78,33,27,31,62,43,50,47,82,69,181,166,176,160,172,152,195,191,185,184,193,187,180,129,126,99,87,77,135,135,135,135,135,135,135,135,135,135,135,135,135,135,128,0,544,544,512,481,486,461,1099,1029,1005,1026,1404,921,1441,720,1438,1364,1406,1259,1284,842,1511,1081,5514,3008,12835,12835,5289,2569,12841,10516]} 1. e4 {[%emt 0:01:10]} e6 {[%emt 0:00:12]} 2. d4 {[%emt 0:00:29]} d5 {[%emt 0:00:08]} 3. Nd2 {[%emt 0:00:10]} Be7 {[%emt 0:00:13]} 4. e5 {[%emt 0:00:27]} c5 {[%emt 0:00:11]} 5. c3 {[%emt 0:00:08]} Qb6 {[%emt 0:01:40]} 6. Ndf3 {[%emt 0:05:16] C03: French Tarrasch: Unusual Black 3rd moves.} Bd7 {[%emt 0:00:53]} 7. Bd3 {[%emt 0:02:48]} cxd4 {[%emt 0:02:12]} 8. cxd4 {[%emt 0:01:24] White is slightly better.} Bb5 {[%emt 0:02:27]} 9. Ne2 {[%emt 0:02:17]} Bxd3 {[%emt 0:07:19]} 10. Qxd3 {[%emt 0:00:01]} Nc6 {[%emt 0:04:57]} 11. O-O {[%emt 0:01:36] [#]} Nh6 $146 {[%emt 0:04:36]} (11... Nb4 $11 12. Qd1 Nc6) ({Predecessor:} 11... Bd8 12. a3 a5 13. Nc3 Nge7 14. Nb5 O-O 15. Bd2 Qa6 16. a4 Bb6 17. Ng5 Ng6 {½-½ Hu,Y (2095)-Wang,X (1877) CHN-chB (Women) 2019 (7)}) 12. Ng3 {[%emt 0:03:38]} (12. Bxh6 $16 gxh6 13. Rfc1) 12... Rc8 {[%emt 0:06:43]} (12... Ng8 $14) 13. Bd2 {[%emt 0:03:39]} (13. Bxh6 $16 gxh6 14. Nh5) 13... Qa6 {[%emt 0:23:48]} 14. Qxa6 {[%emt 0:14:01]} bxa6 {[%emt 0:01:22]} 15. Rac1 {[%emt 0:08:35]} Kd7 {[%emt 0:01:04]} 16. a3 {[%emt 0:03:23]} f5 {[%emt 0:11:47]} (16... Nb8 $11 {keeps the balance.}) 17. Ne2 {[%emt 0:15:56]} Nf7 {[%emt 0:01:24]} 18. Ne1 {[%emt 0:01:10]} Bd8 {[%emt 0:08:54]} 19. Nd3 {[%emt 0:02:35]} Bb6 {[%emt 0:00:07]} 20. Bc3 {[%emt 0:00:15][%cal Bd2c3,Bc3b2,Bb2a3][%mdl 32]} g5 {[%emt 0:07:01]} 21. b4 {[%emt 0:03:00][%cal Bb2b4,Bb4b5][%mdl 32]} Ke7 {[%emt 0:01:18] [#]} (21... a5 $14) 22. a4 $1 $18 {[%emt 0:01:49]} a5 {[%emt 0:00:46]} 23. b5 {[%emt 0:00:47]} Nb8 {[%emt 0:00:12]} 24. Bb2 {[%emt 0:01:57]} Nd7 {[%emt 0:00:23]} 25. Ba3+ {[%emt 0:02:37]} Kd8 {[%emt 0:00:09]} 26. Rxc8+ {[%emt 0:02:21]} (26. Rc6 Rxc6 27. bxc6 Nb8 $11) 26... Kxc8 {[%emt 0:00:06]} 27. Rc1+ {[%emt 0:00:04]} Kb7 {[%emt 0:02:57]} 28. g3 {[%emt 0:07:07]} (28. f4 $18) 28... Rc8 $16 {[%emt 0:07:17]} 29. Rxc8 {[%emt 0:00:35]} Kxc8 {[%emt 0:00:02]} 30. f4 {[%emt 0:00:10]} g4 {[%emt 0:00:03]} (30... gxf4 $142 31. gxf4 (31. Ndxf4 Nfxe5 32. Nxe6 Nc4 $14) 31... Bd8) 31. Nc5 {[%emt 0:00:35]} Nd8 {[%emt 0:00:05]} 32. Kf2 {[%emt 0:00:31] White is more active.} Bc7 {[%emt 0:00:10]} 33. Nxd7 {[%emt 0:01:40]} Kxd7 {[%emt 0:00:07][%mdl 4096] Endgame KBN-KBN} 34. Nc1 {[%emt 0:00:35]} Bb6 {[%emt 0:02:42]} 35. Nb3 {[%emt 0:01:20]} Nb7 {[%emt 0:03:44]} 36. Ke3 {[%emt 0:00:19]} h5 {[%emt 0:00:19]} 37. Kd3 {[%emt 0:03:21]} Bd8 {[%emt 0:00:52]} 38. Ke3 {[%emt 0:02:19]} ({White should try} 38. Ke2 $16) 38... h4 $2 {[%emt 0:00:21][%mdl 8192] [#] White stays focused until the end.} (38... Bb6 $1 $11) 39. gxh4 $1 $18 {[%emt 0:01:01] White is clearly winning.} Bxh4 {[%emt 0:00:11]} 40. Bc5 {[%emt 0:00:12]} Nxc5 {[%emt 0:00:44]} 41. dxc5 {[%emt 0:03:02] aiming for c6+. KB-KN} Be7 {[%emt 0:00:18]} (41... Be1 $142 42. Ke2 Bb4 43. c6+ Ke7) 42. Kf2 {[%emt 0:02:12]} (42. Nxa5 $2 {perishes.} Bxc5+ 43. Kd3 Bg1 $19) 42... Bh4+ {[%emt 0:00:59]} 43. Ke2 {[%emt 0:01:07] c6+ would be deadly.} Bd8 {[%emt 0:00:37]} 44. Nd4 {[%emt 0:00:34]} Bc7 {[%emt 0:00:21]} 45. Kf1 {[%emt 0:01:00]} Bd8 {[%emt 0:00:15]} 46. Kg2 {[%emt 0:00:56]} Bc7 {[%emt 0:00:30]} 47. Kg3 {[%emt 0:01:06]} Bd8 {[%emt 0:00:07]} 48. h3 {[%emt 0:00:12]} gxh3 {[%emt 0:00:12]} 49. Kxh3 {[%emt 0:00:01]} Be7 {[%emt 0:01:29]} 50. c6+ {[%emt 0:00:16]} Kc8 {[%emt 0:00:06]} 51. Nxe6 {[%emt 0:00:14]} Bb4 {[%emt 0:00:23]} 52. Nd4 {[%emt 0:00:45]} Bd2 {[%emt 0:00:09]} 53. Kg3 {[%emt 0:00:08] Weighted Error Value: White=0.14 (very precise) /Black=0.43} 1-0

[Event "SixDays Budapest January-IMB 2023"]
[Site "Budapest"]
[Date "2023.01.28"]
[Round "9.3"]
[White "To, Nhat Minh"]
[Black "Urhegyi, Marton"]
[Result "1/2-1/2"]
[ECO "A39"]
[WhiteElo "2335"]
[BlackElo "2253"]
[Annotator "TA"]
[PlyCount "41"]
[EventDate "2023.01.23"]
[EventType "tourn"]
[EventCountry "HUN"]
[SourceTitle "playchess.com"]
[Source "ChessBase"]
[SourceQuality "1"]
[TimeControl "5400+30"]

{[%evp 14,15,33,27]} 1. Nf3 {[%emt 0:04:43]} Nf6 {[%emt 0:00:09]} 2. c4 {[%emt 0:00:03]} c5 {[%emt 0:00:10]} 3. g3 {[%emt 0:00:04]} g6 {[%emt 0:00:05]} 4. Bg2 {[%emt 0:00:03]} Bg7 {[%emt 0:00:06]} 5. O-O {[%emt 0:00:04]} O-O {[%emt 0:00:05]} 6. Nc3 {[%emt 0:00:04]} Nc6 {[%emt 0:00:06]} 7. d4 {[%emt 0:00:03]} cxd4 {[%emt 0:00:13]} 8. Nxd4 {[%emt 0:00:06] [#]} {Predecessor:} Nxd4 $146 {A39: Symmetrical English vs ...g6: 4 Bg2 Bg7 5 Nf3 Nf6 6 0-0 0-0 7 d4.} 9. Qxd4 d6 10. Qd3 Bf5 11. e4 Be6 12. b3 Nd7 13. Be3 Qa5 14. Bd4 Ne5 15. Qd2 Rfc8 16. Rac1 Nc6 17. Bxg7 Kxg7 18. Rfe1 a6 19. Qb2 Kg8 20. Nd5 Bxd5 21. exd5 {½-½ Vidit,S (2710)-Mamedov,R (2646) Shusha Blitz 2022 (7)} 1/2-1/2

[Event "SixDays Budapest January-IMB 2023"]
[Site "Budapest"]
[Date "2023.01.28"]
[Round "9.4"]
[White "Papp, Levente"]
[Black "Semprun Martinez, Fernando"]
[Result "1/2-1/2"]
[ECO "A05"]
[WhiteElo "2391"]
[BlackElo "2106"]
[Annotator "TA"]
[PlyCount "154"]
[EventDate "2023.01.23"]
[EventType "tourn"]
[EventCountry "HUN"]
[SourceTitle "playchess.com"]
[Source "ChessBase"]
[SourceQuality "1"]
[TimeControl "5400+30"]

{[%evp 14,154,35,19,36,36,36,28,46,22,30,33,43,17,42,0,7,7,0,-65,-41,-53,-51,-44,-6,-18,0,0,0,-18,13,-54,0,-25,-16,-189,-193,-190,-192,-193,-179,-179,-149,-118,-127,-141,-147,-134,-119,-225,-172,-200,-164,-178,-169,-220,-225,-260,-237,-275,-303,-360,-361,-366,-359,-400,-366,-340,-249,-248,-98,-98,-98,-98,-97,-145,-175,-152,-128,-128,-97,-97,-63,-63,-45,-85,-85,-98,-97,-128,-97,-128,-98,-98,-98,-98,-98,-98,0,-98,0,-98,-98,-98,-98,-98,-98,-98,-98,-98,-98,-98,-98,-98,-98,-98,-98,-98,-98,-98,-98,-98,-98,-98,-98,-98,-98,-98,0,-98,-98,-98,-98,-98,-98,-98,0,-98,0,-98,0,0,0]} 1. Nf3 {[%emt 0:00:24]} Nf6 {[%emt 0:00:01]} 2. g3 {[%emt 0:00:59]} g6 {[%emt 0:00:30]} 3. b3 {[%emt 0:00:14]} Bg7 {[%emt 0:01:23]} 4. Bb2 {[%emt 0:00:06]} d5 {[%emt 0:01:13]} 5. c4 {[%emt 0:00:07]} c6 {[%emt 0:00:20]} 6. Bg2 {[%emt 0:00:06]} O-O {[%emt 0:00:06]} 7. O-O {[%emt 0:00:04]} a5 {[%emt 0:00:24]} 8. Nc3 $1 {[%emt 0:04:25][%mdl 4] is recently more successful than 8.d3.} Na6 {[%emt 0:03:54] A11: English Opening: 1...c6.} 9. d4 {[%emt 0:04:46]} Bf5 {[%emt 0:00:46]} 10. Nh4 {[%emt 0:03:17]} Be6 {[%emt 0:01:00] White has an edge.} 11. cxd5 {[%emt 0:00:41] [#]} cxd5 $146 {[%emt 0:00:48]} ({Predecessor:} 11... Nxd5 12. Rc1 Nab4 13. Qd2 Nxc3 14. Bxc3 Qb6 15. e4 Rfd8 16. Nf3 Bg4 17. a3 Bxf3 18. Bxf3 {½-½ Thorsteinsson,E (2147)-Weeks,M (2273) Reykjavik op 22nd 2006 (9)}) 12. Rc1 {[%emt 0:00:14]} Rc8 {[%emt 0:02:09]} 13. Qd2 {[%emt 0:04:21]} Qd6 {[%emt 0:07:50]} 14. Nb5 {[%emt 0:11:12]} Qb4 {[%emt 0:04:40]} 15. Qd3 {[%emt 0:01:36] And now a3 would win.} Bd7 {[%emt 0:02:18]} 16. a4 {[%emt 0:11:21]} ({White should try} 16. Nc3 $11) 16... Bxb5 {[%emt 0:00:33]} (16... Ne4 $5 {[%cal Ra6c5]} 17. Rb1 Nd2 $17) 17. axb5 {[%emt 0:02:38]} Nc7 {[%emt 0:02:47]} 18. Ra1 {[%emt 0:00:08]} b6 {[%emt 0:07:18]} (18... Nxb5 $2 19. Ra4 Qd6 20. Qxb5 $18) 19. Bh3 $1 {[%emt 0:01:08]} (19. Ba3 Qxb5 20. Qxb5 Nxb5 21. Bxe7 Nxd4 22. Bxf8 Nxe2+ 23. Kh1 Kxf8 $17) 19... Ne6 {[%emt 0:09:46]} (19... e6 $5 {[%cal Rb4b5]}) 20. Nf3 {[%emt 0:10:06] Bxe6 is the strong threat.} Ne4 {[%emt 0:09:52]} 21. Rfd1 {[%emt 0:15:34]} Nd6 {[%emt 0:04:33]} 22. Qe3 {[%emt 0:00:24]} (22. Ba3 $11 Qxb5 23. Bxd6 (23. Qxb5 Nxb5 24. Bxe7 Rfe8 $17) 23... Qxd3 24. Rxd3 exd6 25. e3) 22... Ne4 {[%emt 0:01:20] With the idea ...Rc2.} ({Reject} 22... Nxb5 23. Bxe6 Rc2 24. Rab1 (24. Ra4 Qd6 $11) 24... fxe6 25. Qxe6+ Kh8 26. Ne1 $14) (22... Rc2 $5 {[%cal Rc2b2]} 23. Rab1 Qxb5 $17) 23. Qd3 $1 {[%emt 0:01:50] Repels Rc2} f5 {[%emt 0:02:53]} 24. Ne5 $2 {[%emt 0:04:27]} (24. e3 $11 {and White is okay.}) 24... Bxe5 $19 {[%emt 0:00:20]} 25. dxe5 {[%emt 0:00:02]} N4c5 {[%emt 0:01:25] A dynamic duo of knights.} 26. Qxd5 {[%emt 0:00:57] [#]} Rfd8 $1 {[%emt 0:01:36]} 27. Qc4 {[%emt 0:02:16]} Qxb3 {[%emt 0:00:13]} 28. Qxb3 {[%emt 0:00:26]} Nxb3 {[%emt 0:00:02]} 29. Rxd8+ {[%emt 0:05:57]} Rxd8 {[%emt 0:00:16]} 30. Rb1 {[%emt 0:00:13]} Nec5 {[%emt 0:06:39]} 31. e6 {[%emt 0:04:24]} Nd4 {[%emt 0:01:32]} 32. e3 {[%emt 0:01:54]} Ndxe6 {[%emt 0:03:58][%cal Bd4e6,Be6g5,Bg5e4,Be4f2,Bf2d3][%mdl 32]} ({And not} 32... Nxb5 33. Bf1 Nd6 34. Ba3 $17) 33. Bf1 {[%emt 0:00:07]} Ng5 {[%emt 0:01:10]} 34. Bc4+ {[%emt 0:00:55]} (34. h4 $142 Nge4 35. Bd4) 34... Kf8 {[%emt 0:00:42]} 35. h4 {[%emt 0:04:22]} Nge4 {[%emt 0:00:27]} 36. Rc1 {[%emt 0:02:15] [#]} Nxf2 $1 {[%emt 0:01:51][%mdl 576] Decoy} 37. Be5 {[%emt 0:02:08]} (37. Bd4 Nfe4) 37... Nfd3 {[%emt 0:04:43]} 38. Rd1 {[%emt 0:01:34]} Rd7 {[%emt 0:00:23] Prevents Bc7} 39. Bxd3 {[%emt 0:01:03]} Nxd3 {[%emt 0:02:37][%mdl 4096] Endgame KRB-KRN} 40. Bd4 {[%emt 0:00:10]} Nc5 {[%emt 0:00:36]} 41. Rc1 {[%emt 0:00:15]} a4 {[%emt 0:03:16]} (41... Nb3 $19 {is more deadly.} 42. Rc8+ Kf7 43. Bxb6 Rb7) 42. Bxc5 $17 {[%emt 0:00:24]} bxc5 {[%emt 0:00:01]} 43. Rxc5 {[%emt 0:00:23] KR-KR} Rd3 {[%emt 0:01:09]} (43... a3 {looks sharper.} 44. b6 Rb7 45. Rb5 Kf7) 44. Kf2 {[%emt 0:00:29]} (44. b6 $142 Rb3 45. Ra5) 44... Rb3 {[%emt 0:00:19] White must now prevent ...Kf7.} 45. Rc8+ {[%emt 0:00:24]} Kf7 {[%emt 0:00:44]} 46. Ra8 {[%emt 0:00:06]} Rxb5 {[%emt 0:02:55]} 47. Rxa4 {[%emt 0:00:04]} Rb2+ {[%emt 0:00:37]} 48. Kf3 {[%emt 0:00:02]} h6 {[%emt 0:00:26]} 49. Ra6 {[%emt 0:02:10][%cal Oh4h5]} e6 {[%emt 0:00:45]} 50. Ra3 {[%emt 0:00:56]} Kf6 {[%emt 0:01:51]} 51. Rc3 {[%emt 0:00:40]} Rb1 {[%emt 0:00:28]} 52. Ra3 {[%emt 0:00:22]} g5 {[%emt 0:01:03]} 53. hxg5+ {[%emt 0:00:07]} hxg5 {[%emt 0:01:38]} 54. g4 {[%emt 0:00:26]} Rf1+ {[%emt 0:01:19]} 55. Kg2 {[%emt 0:00:20]} Rb1 {[%emt 0:00:38]} 56. Kf3 {[%emt 0:00:05]} Rf1+ {[%emt 0:01:11]} 57. Kg2 $1 {[%emt 0:00:05]} Rc1 {[%emt 0:00:03]} 58. Kf3 {[%emt 0:00:12]} Rg1 {[%emt 0:01:36]} 59. gxf5 {[%emt 0:00:21]} exf5 {[%emt 0:01:08]} 60. Ra6+ {[%emt 0:00:12]} Kf7 {[%emt 0:00:25]} 61. Rb6 {[%emt 0:03:20]} Kg7 {[%emt 0:00:54]} 62. Ra6 {[%emt 0:00:16]} Rb1 {[%emt 0:00:02]} 63. Rc6 {[%emt 0:00:18]} Kf7 {[%emt 0:01:13]} 64. Ra6 {[%emt 0:00:02]} Rb4 {[%emt 0:00:09]} 65. Rc6 {[%emt 0:00:30]} Re4 {[%emt 0:00:06]} 66. Ra6 {[%emt 0:00:26]} g4+ {[%emt 0:00:50]} 67. Kf2 {[%emt 0:00:04]} Re6 {[%emt 0:00:04]} 68. Ra8 {[%emt 0:00:17]} Kf6 {[%emt 0:00:16]} 69. Rf8+ {[%emt 0:00:52]} Ke5 {[%emt 0:00:20]} 70. Ra8 {[%emt 0:00:09]} Kf6 {[%emt 0:00:57]} 71. Rf8+ $1 {[%emt 0:00:05]} Kg5 {[%emt 0:00:05]} 72. Rg8+ {[%emt 0:00:23]} Rg6 {[%emt 0:00:28]} 73. Rf8 {[%emt 0:00:25]} Rh6 {[%emt 0:00:19] Strongly threatening ...Rh2+.} 74. Rg8+ {[%emt 0:00:10]} Rg6 {[%emt 0:03:03]} 75. Rf8 {[%emt 0:00:06]} Rh6 {[%emt 0:00:11] Threatens to win with ...Rh2+.} 76. Rg8+ {[%emt 0:00:02]} Kf6 {[%emt 0:00:07]} (76... Kh4 $17 77. Re8 Kg5 78. Rg8+) 77. e4 $1 $11 {[%emt 0:01:34]} Ke5 {Whites escaped into a draw.   Weighted Error Value: White=0.21 (precise) /Black=0.21 (precise)} 1/2-1/2